bitfinex-derivatives/quotes_ETHF0:USTF0_20260208
["timestamp","ask_amount","ask_price","bid_price","bid_amount"]
[1770537839272,5.38059732,2084.6,2083.9,5.76412812]
[1770537839468,5.38059732,2085.2,2084.1,5.76412812]
[1770537839776,5.38059732,2085.2,2084.3,5.76412812]
[1770537839777,5.38477886,2085.2,2084.3,5.76412812]
[1770537840074,5.38477886,2085.2,2084.3,8.62503685]
[1770537840278,5.38477886,2085.2,2084.4,5.76412812]
[1770537841679,5.38477886,2085.2,2084.6,5.47431742]
[1770537845272,0.00418154,2085.2,2084.6,5.47431742]
[1770537845470,0.23985,2086.3,2084.8,5.50458082]
[1770537845688,5.38059732,2086.4,2085.2,5.50077575]
[1770537845883,5.38059732,2086.4,2085.5,5.50077575]
[1770537846587,5.38665279,2086.4,2085.5,5.50621466]
[1770537846885,5.38665279,2086.4,2085.4,2.83113341]
[1770537846886,5.38665279,2086.4,2085.1,5.50135633]
[1770537847282,5.38665279,2086.4,2085.3,5.50679524]
[1770537847887,5.38665279,2086.4,2085.4,5.30768332]
[1770537848886,0.00605547,2086.4,2085.4,9.52223592]
[1770537849085,0.00605547,2086.4,2085.7,5.30823507]
[1770537849289,5.70055982,2087.2,2086.3,5.30823507]
[1770537849482,5.70055982,2088.2,2086.7,5.30823507]
[1770537849786,7.08397901,2088.2,2086.5,5.49620162]
[1770537849993,5.70055982,2087.7,2086.1,5.49620162]
[1770537850288,5.70055982,2087.5,2086.1,5.49620162]
[1770537850490,5.70055982,2087.5,2085.9,5.49620162]
[1770537850690,5.70055982,2087.1,2085.5,5.49674936]
[1770537851489,5.70055982,2087.1,2085.9,5.49674936]
[1770537852188,5.70055982,2087.6,2086.3,5.53340734]
[1770537854996,5.70055982,2087.6,2086.3,5.83443183]
[1770537856294,5.70055982,2087.6,2086.6,1.38341919]
[1770537856493,5.70055982,2087.6,2086.7,5.72672628]
[1770537860097,5.70055982,2087.6,2086.3,5.70000704]
[1770537863500,0.00488233,2087.7,2086.3,5.70000704]
[1770537863501,5.58351252,2087.5,2086.3,5.70000704]
[1770537864498,5.58351252,2087.5,2086.5,5.58102473]
[1770537867702,5.58351252,2088.2,2087.3,5.72672628]
[1770537868809,5.58770964,2088.2,2087.3,5.73205738]
[1770537869907,5.58770964,2088.2,2087.4,5.72672628]
[1770537870104,5.58351252,2088.7,2087.7,5.72672628]
[1770537870808,5.58351252,2088.9,2088.1,5.72672628]
[1770537871007,5.58351252,2089.5,2088.4,1.38341919]
[1770537871202,5.58863839,2089.5,2088.5,5.72672628]
[1770537872308,5.58863839,2089.5,2088.3,5.72672628]
[1770537872502,5.58351252,2089.4,2087.9,7.11014547]
[1770537873707,5.58351252,2089.4,2087.9,5.72672628]
[1770537874211,5.58351252,2089.4,2087.9,8.53375838]
[1770537874414,5.58351252,2089.4,2088.0,5.72672628]
[1770537875208,5.82301252,2089.3,2087.8,5.72672628]
[1770537875409,5.82301252,2089.3,2087.6,5.72672628]
[1770537876713,5.82301252,2089.3,2087.7,5.96278119]
[1770537877213,5.82301252,2089.3,2087.7,8.76981329]
[1770537877415,5.82301252,2089.3,2087.8,5.96278119]
[1770537878307,5.90636132,2089.3,2087.6,8.76981329]
[1770537878610,5.90636132,2089.3,2087.6,5.96278119]
[1770537878811,6.04929298,2089.1,2087.6,5.96278119]
[1770537879205,6.28881298,2089.1,2087.6,5.96278119]
[1770537881015,6.04929298,2088.7,2087.4,5.96278119]
[1770537881519,6.28886298,2088.7,2087.4,5.96278119]
[1770537881718,6.04929298,2088.3,2087.3,0.0053311]
[1770537882019,6.28891298,2088.3,2086.9,5.96278119]
[1770537882913,6.28891298,2088.3,2086.9,5.96665333]
[1770537883116,6.28891298,2088.3,2086.9,8.77368543]
[1770537884122,6.28891298,2088.3,2087.1,5.96278119]
[1770537884515,6.04929298,2088.3,2087.3,5.96278119]
[1770537884715,6.04929298,2088.3,2087.5,5.96278119]
[1770537884917,6.04929298,2088.3,2087.6,5.96278119]
[1770537885117,6.04929298,2088.3,2087.7,5.96278119]
[1770537887414,6.04929298,2088.8,2087.7,5.96278119]
[1770537887621,6.04929298,2088.8,2087.9,5.96278119]
[1770537890820,6.04929298,2088.8,2088.0,5.96278119]
[1770537891019,6.04929298,2088.8,2088.1,5.96278119]
[1770537892125,6.04929298,2088.8,2088.0,2.8070321]
[1770537892320,6.04929298,2088.8,2087.9,8.76981329]
[1770537892924,6.28885298,2088.8,2087.6,8.76981329]
[1770537893328,6.04929298,2088.6,2087.7,4.47916825]
[1770537893526,6.04929298,2088.4,2087.4,8.76981329]
[1770537893824,6.04929298,2088.4,2087.3,2.8070321]
[1770537894021,6.04929298,2088.4,2087.5,5.96278119]
[1770537895021,6.04929298,2088.4,2087.3,8.76981329]
[1770537895214,6.04929298,2088.4,2087.5,5.96278119]
[1770537896625,6.04929298,2088.4,2087.6,5.96278119]
[1770537897229,6.04929298,2088.4,2088.0,0.12500001]
[1770537897424,6.04929298,2088.4,2088.0,0.02500001]
[1770537898322,6.04929298,2088.4,2087.7,5.96278119]
[1770537898523,6.04929298,2088.4,2087.4,8.76981329]
[1770537899831,6.04929298,2088.4,2087.2,5.96278119]
[1770537899832,6.28889298,2088.4,2087.2,5.96278119]
[1770537900228,6.04929298,2088.0,2087.0,5.96278119]
[1770537900525,6.04929298,2088.0,2086.9,0.00387214]
[1770537900526,6.28895298,2087.9,2086.9,0.00387214]
[1770537900727,6.28895298,2087.9,2086.9,5.96665333]
[1770537900925,6.28895298,2087.9,2086.9,0.00387214]
[1770537903220,6.04929298,2087.6,2086.9,0.00387214]
[1770537903421,6.28898298,2087.6,2086.5,5.96278119]
[1770537903729,0.0056811,2088.0,2086.2,2.82778232]
[1770537903730,6.04929298,2087.2,2086.2,2.82778232]
[1770537903927,0.0056811,2088.0,2085.8,7.02481378]
[1770537903928,6.04929298,2086.8,2085.9,5.96278119]
[1770537904126,6.04929298,2086.8,2085.7,5.96278119]
[1770537904320,6.04929298,2086.2,2085.3,5.96278119]
[1770537905425,6.05533054,2086.2,2085.3,5.96767245]
[1770537905725,6.05533054,2086.2,2085.3,0.00489126]
[1770537905924,6.05533054,2086.2,2085.3,1e-08]
[1770537906125,6.05533054,2086.2,2084.9,5.27964681]
[1770537906126,5.66387735,2086.0,2084.9,5.27964681]
[1770537906328,5.90375735,2086.0,2084.9,5.27964681]
[1770537907032,5.90375735,2086.0,2084.9,5.28383918]
[1770537907427,5.66387735,2085.8,2084.9,5.28383918]
[1770537907629,5.90377735,2085.8,2084.1,5.27964681]
[1770537907826,5.66387735,2085.6,2084.1,5.27964681]
[1770537908031,5.90379735,2085.6,2084.1,5.27964681]
[1770537908229,5.66387735,2085.6,2084.1,5.27964681]
[1770537908633,5.66387735,2085.6,2084.2,5.27964681]
[1770537909830,5.66387735,2085.6,2084.3,5.27964681]
[1770537910232,0.00603756,2086.2,2084.1,4.21342643]
[1770537910233,5.66387735,2085.3,2084.1,0.00343498]
[1770537910436,1.37710428,2085.8,2083.7,5.27964681]
[1770537910437,5.66387735,2085.0,2083.7,5.27964681]
[1770537911336,5.66387735,2085.0,2083.7,5.28321673]
[1770537916136,5.18919665,2084.7,2082.7,5.43642236]
[1770537916637,5.18919665,2084.5,2082.7,5.43642236]
[1770537917030,5.18919665,2084.5,2082.9,5.43642236]
[1770537917236,5.19359814,2084.5,2082.9,5.43642236]
[1770537918239,5.18919665,2084.3,2082.9,5.43642236]
[1770537922236,5.19359814,2084.5,2083.1,5.43642236]
[1770537922434,0.00440149,2084.5,2083.1,5.43642236]
[1770537922738,0.00440149,2084.5,2083.3,5.43642236]
[1770537925039,5.19359814,2084.5,2083.3,5.43642236]
[1770537926742,5.43364814,2084.5,2083.3,5.43642236]
[1770537926938,5.19359814,2084.5,2083.3,5.43642236]
[1770537927643,5.18919665,2084.2,2083.3,5.43642236]
[1770537928242,5.18919665,2084.0,2083.3,5.43642236]
[1770537928543,5.18919665,2084.4,2083.3,5.43642236]
[1770537929134,0.00440149,2084.5,2083.3,5.43642236]
[1770537931339,0.00440149,2084.5,2083.3,8.26420468]
[1770537931549,0.00440149,2084.5,2083.4,5.43642236]
[1770537932548,5.18919665,2085.1,2083.6,5.43642236]
[1770537932849,5.18919665,2085.1,2083.8,5.43642236]
[1770537933037,5.18919665,2085.1,2083.9,5.43642236]
[1770537933234,5.18919665,2085.1,2084.1,5.43642236]
[1770537933643,5.1930707,2085.1,2084.1,5.43642236]
[1770537934249,5.1930707,2085.1,2084.2,5.43642236]
[1770537934449,0.00387405,2085.1,2084.2,5.44135142]
[1770537935350,0.00387405,2085.1,2084.2,8.26913374]
[1770537935547,5.1930707,2085.1,2084.3,5.43642236]
[1770537936749,0.00387405,2085.1,2084.3,8.26420468]
[1770537936954,5.00175786,2085.5,2084.6,5.19826123]
[1770537937856,5.00548802,2085.5,2084.6,5.19826123]
[1770537947672,5.00548802,2085.5,2084.6,5.44226123]
[1770537952478,0.00373016,2085.5,2084.6,5.44226123]
[1770537952673,0.00373016,2085.5,2084.7,5.19826123]
[1770537952877,0.00373016,2085.5,2084.7,5.44226123]
[1770537953782,5.66248173,2086.4,2084.7,5.44226123]
[1770537953783,5.00175786,2085.8,2084.9,5.19826123]
[1770537953980,5.00175786,2085.8,2085.0,5.19826123]
[1770537954179,0.23982,2086.5,2085.0,5.19826123]
[1770537954378,5.00175786,2086.4,2085.0,5.19826123]
[1770537954780,5.00600963,2086.4,2085.0,5.19826123]
[1770537955176,5.24583963,2086.4,2085.0,5.19826123]
[1770537955881,5.00600963,2086.4,2085.0,5.19826123]
[1770537956085,5.00175786,2085.7,2084.6,5.19826123]
[1770537957689,5.24166786,2085.7,2084.6,5.19826123]
[1770537958378,5.00175786,2085.5,2084.6,5.19826123]
[1770537959777,5.00175786,2085.5,2084.8,5.19826123]
[1770537960991,5.00175786,2085.5,2084.7,2.82778232]
[1770537961196,5.00175786,2085.5,2084.3,8.02604355]
[1770537961686,5.00175786,2085.5,2084.4,5.19826123]
[1770537962488,5.00175786,2085.3,2084.4,5.19826123]
[1770537965894,5.00175786,2085.3,2084.5,5.25344516]
[1770537967194,5.00175786,2085.3,2084.4,5.25344516]
[1770537968692,5.24909551,2085.1,2084.4,5.25344516]
[1770537969100,0.23995,2085.4,2084.4,5.25344516]
[1770537969101,7.982,2085.6,2084.7,5.25344516]
[1770537969297,5.24909551,2086.0,2085.0,5.25344516]
[1770537969495,5.24909551,2086.0,2085.1,5.25344516]
[1770537970194,5.24909551,2085.9,2085.1,5.25344516]
[1770537971098,5.24909551,2085.9,2084.9,8.08122748]
[1770537971599,5.24909551,2085.9,2085.0,5.25344516]
[1770537974500,5.02951012,2085.8,2084.6,5.24720201]
[1770537974893,5.02951012,2085.6,2084.6,5.24720201]
[1770537976396,5.02951012,2085.6,2084.7,5.24720201]
[1770537976602,5.66248173,2086.2,2084.8,5.24720201]
[1770537976800,5.03376189,2086.4,2085.5,5.24720201]
[1770537977600,5.03376189,2086.4,2085.6,5.24720201]
[1770537978003,0.00425177,2086.4,2085.6,5.24720201]
[1770537978302,0.00425177,2086.4,2085.7,4.55954378]
[1770537978600,5.02951012,2086.3,2085.7,0.00594809]
[1770537979405,5.02951012,2086.3,2085.7,5.2531501]
[1770537979601,0.00425177,2086.4,2085.7,5.2531501]
[1770537979998,0.00425177,2086.4,2085.8,5.24720201]
[1770537982601,5.02951012,2087.0,2085.8,5.24720201]
[1770537983718,5.03409422,2087.0,2085.8,5.24720201]
[1770537984710,5.03409422,2087.0,2085.9,5.24720201]
[1770537985703,0.0045841,2087.0,2086.2,5.24720201]
[1770537987610,5.02951012,2087.5,2086.2,5.24720201]
[1770537987811,5.02951012,2087.5,2086.3,5.24720201]
[1770537988609,0.00601537,2087.5,2086.3,5.24720201]
[1770537989105,5.03552549,2087.5,2086.3,5.24720201]
[1770537991215,5.27523549,2087.5,2086.3,5.24720201]
[1770537991414,5.02951012,2087.3,2086.3,5.24720201]
[1770537992511,0.23972,2087.4,2086.3,5.24720201]
[1770537992726,0.08338195,2088.4,2086.3,5.24720201]
[1770537992727,5.02951012,2088.5,2087.3,5.24720201]
[1770537993712,5.03565406,2088.5,2087.3,5.25151035]
[1770537994611,5.02951012,2088.3,2087.3,5.25151035]
[1770537994817,5.02951012,2088.1,2086.8,5.24720201]
[1770537995006,5.02951012,2087.9,2086.8,5.24720201]
[1770537995816,5.02951012,2087.9,2086.8,5.25313084]
[1770537996215,5.26917012,2087.9,2086.8,5.25313084]
[1770537998819,4.879728,2087.7,2086.8,0.00592883]
[1770538000207,4.879728,2087.7,2086.8,4.83016694]
[1770538000714,4.879728,2087.5,2086.8,0.00592883]
[1770538004913,4.879728,2087.5,2086.4,4.82423811]
[1770538004914,5.119438,2087.5,2086.4,4.82423811]
[1770538005124,4.879728,2087.3,2086.4,4.82423811]
[1770538005317,5.119458,2087.3,2086.4,4.82423811]
[1770538005916,5.119458,2087.3,2086.4,4.82798838]
[1770538006821,5.119478,2087.1,2086.0,4.82423811]
[1770538007915,5.119478,2087.1,2086.0,4.82780112]
[1770538008516,7.982,2087.0,2086.0,4.82780112]
[1770538008718,4.879728,2086.9,2086.0,4.82780112]
[1770538013928,0.00364854,2087.0,2086.0,4.82780112]
[1770538014129,0.00364854,2087.0,2086.1,9.39806864]
[1770538014331,4.88337654,2087.0,2086.2,4.82423811]
[1770538018530,4.879728,2086.8,2086.2,4.82423811]
[1770538018735,4.88337654,2087.0,2086.2,4.82423811]
[1770538019333,4.879728,2086.8,2086.2,4.82423811]
[1770538021140,4.879728,2086.8,2086.0,4.82780112]
[1770538022539,4.879728,2086.4,2085.6,4.82423811]
[1770538022840,4.879728,2086.3,2085.6,4.82423811]
[1770538023236,4.879728,2086.4,2085.6,4.82423811]
[1770538023441,4.879728,2086.4,2085.6,4.83008259]
[1770538029640,5.119558,2086.4,2085.4,4.07794457]
[1770538030339,4.82611263,2086.2,2085.4,4.07794457]
[1770538030540,5.06596263,2086.2,2085.3,5.01610009]
[1770538030744,5.06596263,2086.2,2085.4,0.00503649]
[1770538031244,4.82611263,2086.0,2085.4,0.00503649]
[1770538031440,4.82611263,2086.0,2084.9,5.01610009]
[1770538031939,4.82611263,2085.9,2084.9,5.01610009]
[1770538032334,4.82611263,2085.9,2084.9,5.02126661]
[1770538043250,5.02212222,2085.7,2084.9,5.02126661]
[1770538047855,5.02212222,2086.1,2084.9,5.02126661]
[1770538049751,5.02212222,2086.1,2085.1,5.29693524]
[1770538049947,5.26195222,2086.4,2085.1,5.54093524]
[1770538050258,5.26195222,2086.4,2085.3,5.29693524]
[1770538050655,5.02212222,2086.4,2085.3,5.54093524]
[1770538050851,5.02212222,2086.4,2085.5,5.29693524]
[1770538052158,5.02212222,2086.8,2085.5,5.29693524]
[1770538052962,5.02212222,2086.8,2085.8,5.29693524]
[1770538055063,5.26192222,2086.7,2085.5,2.80253772]
[1770538055259,5.02212222,2086.5,2085.6,5.29693524]
[1770538055459,5.02212222,2086.5,2085.4,5.54093524]
[1770538056154,5.02212222,2086.5,2085.4,5.29693524]
[1770538057367,5.00110504,2086.4,2085.4,5.29693524]
[1770538057968,5.24094504,2086.4,2085.4,5.29693524]
[1770538059576,5.00110504,2086.4,2085.5,4.85525294]
[1770538060367,5.00110504,2086.4,2085.6,4.85525294]
[1770538073477,5.00110504,2086.2,2085.6,4.85525294]
[1770538074567,0.23982,2086.6,2085.6,4.85525294]
[1770538074777,5.00110504,2086.5,2085.6,4.85525294]
[1770538075170,5.00110504,2086.5,2085.4,2.80253772]
[1770538075171,5.00110504,2086.3,2085.5,4.85525294]
[1770538075376,5.00110504,2086.1,2085.3,4.85525294]
[1770538076776,12.98310504,2086.1,2085.3,4.85525294]
[1770538076976,5.00110504,2086.0,2085.3,4.85525294]
[1770538078274,5.00110504,2086.0,2085.2,4.85525294]
[1770538079979,5.00110504,2086.0,2084.9,4.86041946]
[1770538080280,5.00110504,2085.8,2084.9,4.86041946]
[1770538080481,5.00110504,2085.6,2084.9,0.00516652]
[1770538080675,12.98310504,2085.6,2084.9,0.00516652]
[1770538080983,5.00110504,2085.5,2084.4,4.85525294]
[1770538081174,5.00110504,2085.4,2084.4,4.85525294]
[1770538081378,5.00110504,2085.3,2084.3,4.85525294]
[1770538081582,5.00110504,2085.1,2084.1,4.85525294]
[1770538082091,5.00110504,2084.9,2084.1,4.86078907]
[1770538082686,5.00110504,2084.9,2084.1,0.00553613]
[1770538082987,5.00110504,2084.8,2084.1,0.00553613]
[1770538083181,5.00110504,2084.7,2084.1,0.00553613]
[1770538085083,5.00110504,2084.7,2084.1,4.86078907]
[1770538085475,5.00110504,2084.7,2084.1,0.00553613]
[1770538086380,5.00110504,2084.7,2084.1,4.7286155]
[1770538086682,0.00340941,2085.1,2084.1,4.7286155]
[1770538086683,5.10391309,2084.8,2084.1,4.7286155]
[1770538093685,4.76949371,2084.6,2084.1,4.7286155]
[1770538093893,4.76949371,2084.6,2084.1,0.00553613]
[1770538095893,4.76949371,2084.3,2083.0,4.6127191]
[1770538096096,4.76949371,2084.2,2083.0,4.6127191]
[1770538096791,4.76949371,2084.2,2083.0,4.61872469]
[1770538098989,12.98058371,2084.2,2083.0,4.61872469]
[1770538099286,4.76949371,2083.9,2083.0,4.61872469]
[1770538102294,7.971,2084.7,2083.0,4.61872469]
[1770538102295,4.76949371,2084.0,2083.0,4.61872469]
[1770538103892,4.76949371,2083.9,2083.0,4.61872469]
[1770538105394,4.76949371,2085.0,2083.8,4.6127191]
[1770538106396,4.76949371,2084.9,2083.8,4.6127191]
[1770538107592,0.00340941,2085.1,2083.8,4.6127191]
[1770538107593,4.76949371,2084.6,2083.8,4.6127191]
[1770538108492,4.76949371,2084.5,2083.8,4.6127191]
[1770538108693,4.76949371,2084.5,2083.5,4.6127191]
[1770538109088,4.76949371,2084.4,2083.5,4.6127191]
[1770538110992,4.76949371,2084.2,2083.3,4.6127191]
[1770538113991,7.971,2085.0,2083.5,4.6127191]
[1770538113992,4.76949371,2084.6,2083.5,4.6127191]
[1770538114193,4.76949371,2084.6,2083.6,4.6127191]
[1770538115294,4.76949371,2084.9,2083.8,4.6127191]
[1770538120597,4.76949371,2084.9,2083.8,4.8567191]
[1770538123907,4.94013994,2084.7,2083.8,4.8567191]
[1770538124708,4.94013994,2084.3,2083.5,4.93969156]
[1770538135220,4.94013994,2084.3,2083.6,4.58337983]
[1770538135420,4.94013994,2084.3,2083.7,4.93969156]
[1770538140025,4.94013994,2084.3,2083.6,4.93969156]
[1770538142326,4.94013994,2084.3,2083.5,4.93969156]
[1770538142924,4.94013994,2084.3,2083.4,4.93969156]
[1770538144133,4.94013994,2084.1,2083.4,4.93969156]
[1770538144428,4.94013994,2084.0,2083.0,0.00600559]
[1770538144730,4.94013994,2084.0,2083.0,4.94569715]
[1770538145520,4.94013994,2083.7,2083.0,4.94569715]
[1770538149431,4.46519621,2083.8,2083.0,4.94569715]
[1770538154127,4.81901174,2083.9,2083.0,4.94569715]
[1770538154326,4.81901174,2084.1,2083.0,4.94569715]
[1770538158039,4.81901174,2084.1,2083.2,4.6753731]
[1770538158234,4.81901174,2084.0,2083.2,4.6753731]
[1770538168242,7.971,2083.9,2083.2,4.6753731]
[1770538168550,4.81901174,2083.8,2083.2,4.6753731]
[1770538171736,4.81901174,2083.8,2083.1,4.9193731]
[1770538173645,4.81901174,2083.8,2083.1,4.6753731]
[1770538178339,4.72264906,2083.7,2083.1,4.6753731]
[1770538180046,4.72264906,2083.7,2083.0,4.20894018]
[1770538180047,4.72264906,2083.7,2083.2,9.24251445]
[1770538180247,4.72264906,2083.7,2083.0,8.85036961]
[1770538180446,4.72264906,2083.7,2083.1,4.60276852]
[1770538180646,4.72264906,2083.7,2083.2,4.60276852]
[1770538180853,4.72264906,2083.7,2083.1,4.64142943]
[1770538181043,4.72264906,2083.7,2083.2,4.60285109]
[1770538181244,4.72264906,2083.7,2083.1,4.64142943]
[1770538181444,4.72264906,2083.7,2083.2,4.60114525]
[1770538181644,4.72264906,2083.7,2083.1,4.64142943]
[1770538181844,4.72264906,2083.7,2083.2,4.60113915]
[1770538182047,4.72264906,2083.7,2083.1,4.64142943]
[1770538182252,4.72264906,2083.7,2083.2,4.60156514]
[1770538182450,4.72264906,2083.7,2083.1,4.64142943]
[1770538182750,4.72264906,2083.7,2083.2,4.60158119]
[1770538183051,4.72264906,2083.7,2083.1,4.64142943]
[1770538183252,4.72264906,2083.7,2083.2,4.60174797]
[1770538183445,4.72264906,2083.7,2083.1,4.64142943]
[1770538183644,4.72264906,2083.7,2083.2,4.60177548]
[1770538183841,4.72264906,2083.7,2083.1,4.64142943]
[1770538184046,4.72264906,2083.7,2083.2,4.60178047]
[1770538184254,4.72264906,2083.7,2083.1,4.64142943]
[1770538184550,4.72264906,2083.7,2083.2,4.60176478]
[1770538184850,4.72264906,2083.7,2083.1,7.49595337]
[1770538185051,4.72264906,2083.7,2083.2,4.60183761]
[1770538185247,4.72264906,2083.7,2083.1,7.49595337]
[1770538185445,4.72264906,2083.7,2083.2,4.60175888]
[1770538185647,4.72264906,2083.7,2083.1,7.49595337]
[1770538185848,4.72264906,2083.7,2083.2,4.60175935]
[1770538186051,4.72264906,2083.7,2083.1,7.49595337]
[1770538186249,4.72264906,2083.7,2083.2,4.60168498]
[1770538186448,4.72264906,2083.7,2083.2,4.64142943]
[1770538186643,4.72264906,2083.7,2083.1,7.49595337]
[1770538186846,4.72264906,2083.7,2083.2,4.60209498]
[1770538187049,4.72264906,2083.7,2083.1,7.49595337]
[1770538187348,4.72264906,2083.7,2083.2,4.60202726]
[1770538187550,4.72264906,2083.7,2083.1,7.49595337]
[1770538187749,4.72264906,2083.7,2083.2,4.60348909]
[1770538187951,4.72264906,2083.7,2083.1,7.49595337]
[1770538188150,4.72264906,2083.7,2083.1,2.85452394]
[1770538188350,4.72264906,2083.5,2083.1,2.85452394]
[1770538188552,4.72647767,2083.5,2083.1,2.85452394]
[1770538188751,4.72647767,2083.5,2083.0,11.70489355]
[1770538188955,4.72647767,2083.5,2083.0,0.00600559]
[1770538189151,4.72647767,2083.5,2083.0,4.64743502]
[1770538196362,4.72647767,2083.5,2083.1,4.64142943]
[1770538197162,4.72647767,2083.5,2083.0,4.64743502]
[1770538200759,5.64898528,2083.5,2082.8,3.03342435]
[1770538201562,4.72647767,2083.5,2082.8,3.03342435]
[1770538201761,4.72647767,2083.5,2082.8,3.03938171]
[1770538202062,4.72647767,2083.5,2082.8,0.24995736]
[1770538204565,5.64898528,2083.5,2082.8,0.24995736]
[1770538205565,5.64898528,2083.5,2082.8,0.00595736]
[1770538208366,4.72647767,2083.5,2082.8,0.00595736]
[1770538208564,4.6564867,2083.3,2082.8,0.00595736]
[1770538212978,5.57899431,2083.3,2082.8,0.00595736]
[1770538213167,5.57899431,2083.3,2082.5,0.244]
[1770538213375,5.57899431,2083.3,2082.4,8.80005796]
[1770538213568,4.32934485,2083.0,2082.4,0.244]
[1770538213874,4.32934485,2083.0,2082.4,4.59712337]
[1770538214077,4.32934485,2083.0,2082.4,4.35715472]
[1770538214479,4.32934485,2082.6,2082.0,8.55605796]
[1770538214771,4.32934485,2082.6,2082.1,9.00255749]
[1770538215074,4.32934485,2082.6,2081.9,8.55605796]
[1770538215274,4.32934485,2082.6,2081.9,4.35312337]
[1770538215475,4.32934485,2082.6,2081.9,4.35664276]
[1770538215678,4.32934485,2082.6,2081.9,0.00351939]
[1770538216374,4.32934485,2082.4,2081.9,0.00351939]
[1770538217278,4.32934485,2082.4,2081.6,4.35312337]
[1770538217865,4.32934485,2082.4,2081.8,4.35312337]
[1770538218274,4.32934485,2082.4,2081.8,4.35698617]
[1770538219577,4.32934485,2082.4,2082.0,4.35312337]
[1770538222384,4.32934485,2082.7,2082.0,4.35312337]
[1770538228193,4.32934485,2082.6,2082.0,4.35312337]
[1770538231896,4.32934485,2082.6,2082.0,4.59712337]
[1770538234194,4.32934485,2082.6,2082.0,0.244]
[1770538234595,5.25185246,2082.6,2082.0,0.244]
[1770538235602,5.25185246,2082.6,2081.8,4.35698617]
[1770538235804,5.25185246,2082.6,2081.8,0.0038628]
[1770538236297,5.25185246,2082.6,2081.8,4.33538248]
[1770538236498,5.25185246,2082.6,2081.8,0.0038628]
[1770538236698,4.43040451,2082.3,2081.8,0.0038628]
[1770538238307,4.43040451,2082.1,2081.8,0.0038628]
[1770538238507,4.43040451,2082.1,2081.6,4.33151968]
[1770538238707,4.43040451,2082.1,2081.5,4.33151968]
[1770538239601,4.43040451,2082.1,2081.5,0.00491694]
[1770538241010,4.43040451,2082.1,2081.2,4.33151968]
[1770538241204,4.43040451,2082.1,2081.3,8.96056334]
[1770538241403,4.43040451,2082.1,2081.3,4.33151968]
[1770538241809,4.43040451,2082.1,2081.3,4.33528964]
[1770538245200,0.92250761,2081.9,2081.3,0.00376996]
[1770538245408,4.43040451,2081.6,2081.3,0.00376996]
[1770538246810,4.43040451,2081.6,2081.0,4.33151968]
[1770538247010,4.43040451,2081.6,2080.9,4.33151968]
[1770538247616,4.43040451,2081.4,2080.7,4.20293459]
[1770538247809,4.43040451,2081.4,2080.8,4.60360829]
[1770538248009,4.43040451,2081.4,2080.7,9.77098387]
[1770538248310,4.43040451,2081.3,2080.7,4.64554167]
[1770538248512,4.43040451,2081.3,2080.7,4.33531493]
[1770538248913,4.43040451,2081.3,2080.7,0.00379525]
[1770538249108,4.43040451,2081.3,2080.7,4.33531493]
[1770538249508,4.43040451,2081.3,2080.7,0.00379525]
[1770538250812,5.35291212,2081.3,2080.7,0.00379525]
[1770538251719,4.43040451,2081.3,2080.7,0.00379525]
[1770538252919,4.43040451,2081.3,2080.7,4.33531493]
[1770538254019,4.43040451,2081.1,2080.1,15.63402729]
[1770538254221,4.43040451,2081.1,2080.1,5.25402729]
[1770538254616,4.43040451,2081.1,2080.1,5.56156996]
[1770538255020,4.43040451,2081.1,2080.1,5.25838298]
[1770538255423,4.43040451,2081.1,2080.1,4.33587537]
[1770538255813,4.43040451,2081.1,2080.1,5.26084215]
[1770538256418,4.43040451,2081.1,2080.1,5.56690378]
[1770538256619,4.43040451,2081.1,2080.2,4.33151968]
[1770538260721,4.43040451,2081.1,2080.1,0.00435569]
[1770538261026,5.35537129,2081.1,2080.1,0.00435569]
[1770538262133,4.43040451,2081.1,2080.1,0.00435569]
[1770538262731,4.43040451,2081.1,2080.1,4.33587537]
[1770538264023,4.43040451,2081.1,2080.1,5.26084215]
[1770538265430,4.43040451,2081.1,2080.2,4.33151968]
[1770538266129,4.43040451,2081.1,2080.3,4.56996961]
[1770538267328,5.35537129,2081.1,2080.1,0.00435569]
[1770538267528,4.43040451,2081.1,2080.1,0.00435569]
[1770538268325,4.43040451,2081.1,2080.1,4.5743253]
[1770538268535,7.971,2081.0,2080.1,4.5743253]
[1770538268736,4.59614816,2080.9,2080.1,4.5743253]
[1770538268938,4.59614816,2080.9,2080.1,0.00435569]
[1770538269140,4.59614816,2080.8,2080.1,0.00435569]
[1770538272737,4.59614816,2080.7,2080.1,0.00435569]
[1770538276742,4.7707027,2080.4,2079.6,4.38538372]
[1770538276942,4.7707027,2080.4,2079.5,4.38538372]
[1770538277543,4.77524071,2080.4,2079.5,4.38970547]
[1770538280552,5.70020749,2080.4,2079.5,4.38970547]
[1770538280854,4.77524071,2080.4,2079.5,4.38970547]
[1770538282055,4.7707027,2080.1,2079.5,0.00432175]
[1770538282251,4.7707027,2080.1,2079.1,4.38538372]
[1770538283350,4.7707027,2080.1,2079.1,4.39136317]
[1770538284451,4.7707027,2080.0,2079.1,0.00597945]
[1770538285952,4.7707027,2080.0,2079.1,4.39136317]
[1770538288254,4.7707027,2080.1,2079.3,4.38538372]
[1770538288551,4.7707027,2080.3,2079.3,4.38538372]
[1770538289659,4.7707027,2080.3,2079.4,4.38538372]
[1770538290659,4.7707027,2080.3,2079.4,5.3103505]
[1770538290855,0.00453801,2080.4,2079.5,4.38538372]
[1770538291054,0.00453801,2080.4,2079.7,5.3103505]
[1770538291254,4.7707027,2080.8,2079.9,4.38538372]
[1770538292264,4.77683598,2080.8,2079.9,4.38538372]
[1770538293165,4.7707027,2080.7,2079.9,4.38538372]
[1770538293457,4.77683598,2080.8,2080.0,4.38538372]
[1770538293663,4.7707027,2080.9,2080.0,4.38538372]
[1770538294564,4.77515144,2080.9,2080.0,4.38538372]
[1770538295457,4.7707027,2081.2,2080.0,4.38538372]
[1770538295756,4.7707027,2081.2,2080.4,4.38538372]
[1770538295956,4.7707027,2081.2,2080.3,4.69338341]
[1770538296961,4.77468392,2081.2,2080.3,4.69338341]
[1770538298767,4.4227519,2081.2,2080.3,4.69338341]
[1770538298962,4.4227519,2081.2,2080.4,4.69338341]
[1770538300761,4.4227519,2081.2,2080.3,4.69338341]
[1770538308774,4.41877068,2081.0,2080.3,4.69338341]
[1770538312265,4.41877068,2081.1,2080.3,4.69338341]
[1770538312469,0.00398122,2081.2,2080.3,4.69338341]
[1770538312769,0.00398122,2081.2,2080.5,4.69338341]
[1770538312968,0.00398122,2081.2,2080.5,4.93738341]
[1770538313770,0.00398122,2081.2,2080.5,4.69338341]
[1770538313979,4.4227519,2081.2,2080.5,4.69338341]
[1770538314289,0.00398122,2081.2,2080.5,4.69338341]
[1770538316181,4.41877068,2081.7,2080.5,4.69338341]
[1770538316375,4.41877068,2081.7,2080.8,4.69338341]
[1770538317077,4.42281807,2081.7,2080.8,4.69900075]
[1770538317479,3.48495135,2081.8,2081.2,4.69338341]
[1770538317776,4.41877068,2082.1,2081.4,4.69338341]
[1770538318572,4.42292615,2082.1,2081.4,4.69338341]
[1770538318780,0.00415547,2082.1,2081.8,4.69338341]
[1770538318982,4.41877068,2082.5,2081.8,4.69338341]
[1770538319881,4.42468119,2082.5,2081.8,4.69338341]